Cogmind - Beta 14 @@@ ROGUE MODE // 2024.11.18 @ 17:05:20 Player: Fangrelle Result: Destroyed by Y-45 Defender with Heavy Assault Rifle Performance ------------- Evolutions (2) 1000 Regions Visited (5) 1000 Robots Destroyed (50) 250 Value Destroyed (1441) 1441 Prototype IDs (25) 500 Alien Tech Used (0) 0 Bonus (314) 314 TOTAL SCORE: 4505 Bonus ------- High Alert Combat Kills 14 Aligned with FarCom 300 Cogmind --------- Core Integrity 0/550 Matter 279/300 Energy 98/100 System Corruption 0% Temperature Cool (9) Movement Treading (960) Ox10 Location -8/Materials Parts ------- > --- POWER (1) -------- (None) > --- PROPULSION (2) --- Light Treads Improved Hover Unit > --- UTILITY (6) ------ Humpback Armor Integrity Analyzer ECM Suite Hacking Suite > --- WEAPON (2) ------- (None) > --- INVENTORY (35) --- Reinforced Deuterium Engine Light Fission Core Improved Hover Unit Improved Hover Unit Improved Hover Unit Improved Hover Unit Cryofiber Web Improved Heat Sink High-capacity Storage Unit High-capacity Matter Pod (0) Improved Signal Interpreter Trap Extractor (4/4 Blade) Trap Extractor (1/4 Blade) Decoy Drone Bay (16/16) YOLO Cannon Datajack Peak State ------------ > --- POWER ------------ Improved Ion Engine > --- PROPULSION ------- Light Treads Light Treads > --- UTILITY ---------- Improved Heat Sink Humpback Improved Light Armor Plating Hacking Suite Hacking Suite > --- WEAPON ----------- Advanced Beam Cannon Assault Cannon > --- INVENTORY -------- Reinforced Deuterium Engine Fission Core Light Fission Core Light Fission Core Improved Hover Unit Improved Hover Unit Improved Hover Unit Improved Hover Unit Improved Hover Unit Improved Hover Unit Cryofiber Web High-capacity Storage Unit Humpback High-capacity Matter Pod Improved Signal Interpreter Armor Integrity Analyzer ECM Suite Hardened Light Armor Plating Shield Generator Trap Extractor Trap Extractor Decoy Drone Bay Heavy EM Pulse Gun Heavy EM Pulse Gun YOLO Cannon Light Cannon Grenade Launcher Datajack Mining Laser [Rating: 33] Favorites ----------- Power Light Ion Engine Engine Light Ion Engine Power Core Light Nuclear Core Propulsion Light Treads Treads Light Treads Leg Aluminum Leg Hover Unit Improved Hover Unit Utility Humpback Device Improved Heat Sink Storage Humpback Processor Visual Processing Unit Hackware Hacking Suite Protection Hardened Light Armor Plating Weapon Light Cannon Energy Gun Heavy EM Pulse Gun Energy Cannon Advanced Beam Cannon Ballistic Gun Light Assault Rifle Ballistic Cannon Light Cannon Launcher Grenade Launcher Special Weapon Mining Laser Special Melee Weapon Datajack Build | -11 -10 -10 -10 -9 -8 ------- Run | Yrd Mat Min Exi Min Mat Slots Evolved 4 | . . . . . 4 Power . | . . . . . . Propulsion . | . . . . . . Utility 4 | . . . . . 4 Weapon . | . . . . . . Parts Attached 52 | . 11 5 1 . 35 Power 5 | . . 1 . . 4 Engine 2 | . . 1 . . 1 Core 3 | . . . . . 3 Reactor . | . . . . . . Propulsion 7 | . 2 . . . 5 Treads 4 | . 2 . . . 2 Leg . | . . . . . . Wheel . | . . . . . . Hover 3 | . . . . . 3 Flight . | . . . . . . Utility 22 | . 4 2 1 . 15 Device 9 | . . 2 . . 7 Storage 3 | . 1 . 1 . 1 Processor 2 | . 1 . . . 1 Hackware 2 | . . . . . 2 Protection 6 | . 2 . . . 4 Artifact . | . . . . . . Weapon 18 | . 5 2 . . 11 Energy Gun 5 | . 3 . . . 2 Energy Cannon 1 | . . . . . 1 Ballistic Gun . | . . . . . . Ballistic Cannon 9 | . 2 2 . . 5 Launcher 1 | . . . . . 1 Special Weapon 1 | . . . . . 1 Impact Weapon . | . . . . . . Slashing Weapon . | . . . . . . Piercing Weapon . | . . . . . . Special Melee Weapon 1 | . . . . . 1 Unidentified Prototypes 2 | . . . . . 2 Parts Lost 25 | . 3 1 . 1 20 Power 4 | . . 1 . 1 2 Propulsion 7 | . 2 . . . 5 Utility 7 | . 1 . . . 6 Weapon 7 | . . . . . 7 Highest Loss Streak 11 | . 3 1 . 1 11 To Critical Strikes . | . . . . . . Average Slot Usage (%) 87 | . 98 98 88 81 81 Engine 9 | . 14 13 14 10 2 Core 1 | . . . . . 6 Treads 22 | . 23 28 28 28 11 Device 3 | . . 4 3 . 8 Storage 12 | . 14 14 13 14 9 Processor 2 | . 10 7 . . 1 Hackware 4 | . . . . . 16 Protection 2 | . 2 . . . 8 Energy Gun 2 | . 11 7 . . . Ballistic Cannon 21 | . 14 20 28 28 14 Peak Build Rating 33 | . 12 12 14 16 33 Average Rating 17 | . 9 11 12 15 29 On Entrance 10 | 6 6 12 12 14 15 Naked Turns . | . . . . . . Heaviest Build 220 | 12 51 51 209 209 220 Greatest Support 40 | 20 40 40 40 40 40 Greatest Overweight (x) 15 | . 1 1 5 5 15 Average Overweight (x) 3 | . . 1 2 5 7 Largest Inventory Capacity 35 | . 20 20 35 35 35 Average Capacity 29 | . 16 20 30 35 35 Most Carried 35 | . 20 20 26 30 35 Average Carried 24 | . 13 19 20 28 29 Final Capacity 35 | 8 20 20 35 35 35 Final Carried 30 | 6 20 20 26 30 18 Class Distribution -------------------- 68% | Hauler-Mutant 28% | Mutant 3% | Trapper-Mutant Dominant Class ---------------- Mutant | -10/Materials Mutant | -10/Mines Hauler-Mutant | -10/Exiles Hauler-Mutant | -9/Mines Hauler-Mutant | -8/Materials Resources | -11 -10 -10 -10 -9 -8 ----------- Run | Yrd Mat Min Exi Min Mat Matter Collected 1720 | 200 490 224 20 124 662 Remotely . | . . . . . . Salvage Created 1452 | . 762 117 . 75 498 Parts 92 | . 54 4 . 7 27 Haulers Intercepted 3 | . 2 . . . 1 Recyclers Shooed 1 | . . . . . 1 Parts Field Recycled . | . . . . . . Retrieved Matter . | . . . . . . Parts Self-Destructed . | . . . . . . Prevented . | . . . . . . Kills | -11 -10 -10 -10 -9 -8 ------- Run | Yrd Mat Min Exi Min Mat Combat Hostiles Destroyed 36 | . 18 4 . 5 9 Guns 8 | . 7 1 . . . Cannons 24 | . 11 1 . 5 7 AOE 3 | . . 2 . . 1 Classes Destroyed 12 | . 7 . . 1 4 Worker 1 | . 1 . . . . Builder 1 | . . . . . 1 Hauler 3 | . 2 . . . 1 Recycler 2 | . . . . . 2 Mechanic 1 | . 1 . . . . Operator 2 | . 2 . . . . Watcher 4 | . 2 . . . 2 Swarmer 8 | . 3 2 . 3 . Grunt 21 | . 15 2 . . 4 Sentry 4 | . . . . 2 2 Specialist 2 | . . . . . 2 Heavy 1 | . . . . . 1 Best Kill Streak 11 | . 11 2 . 3 2 Combat Bots Only 7 | . 7 2 . 3 2 Max Kills in Single Turn 1 | . 1 1 . 1 1 Gunslinging . | . . . . . . Exploded 1 | . . 1 . . 1 Melee . | . . . . . . Uniques/NPCs Destroyed . | . . . . . . Combat | -11 -10 -10 -10 -9 -8 -------- Run | Yrd Mat Min Exi Min Mat Hostile Shots Fired 358 | . 97 28 . 33 200 Missed 115 | . 26 11 . 11 67 Damage Taken 3623 | . 830 173 . 242 2378 Core 784 | . 177 27 . 22 558 Absorbed by Shields . | . . . . . . Redirected to Shielding 6 | . 6 . . . . Regen/Repaired (Parts) 4 | . 4 . . . . Core Remaining (%) 54 | 100 . . . 9 . Volleys Fired 182 | . 80 9 . 13 80 Largest 2 | . 2 2 . 2 2 Hottest 100 | . 85 85 . 70 100 Shots Fired 320 | . 155 18 . 26 121 Gun 127 | . 95 12 . . 20 Cannon 186 | . 60 6 . 26 94 Launcher 1 | . . . . . 1 Special 6 | . . . . . 6 Kinetic 229 | . 103 6 . 26 94 Thermal 52 | . 46 . . . 6 Explosive 1 | . . . . . 1 Electromagnetic 38 | . 6 12 . . 20 Robot Hit Streak 8 | . 7 5 . 4 8 Robot Miss Streak 5 | . 4 3 . 2 5 Penetration Max . | . . . . . . Secondary Targets . | . . . . . . Shots Hit Robots 184 | . 89 10 . 15 70 Core Hits 71 | . 40 4 . 7 20 Critical Kills . | . . . . . . Critical Parts Destroyed . | . . . . . . Critical Strikes 3 | . . . . . 3 Blast 3 | . . . . . 3 Melee Attacks . | . . . . . . Impact . | . . . . . . Slashing . | . . . . . . Piercing . | . . . . . . Sneak Attacks . | . . . . . . Combat Hostiles . | . . . . . . Follow-up Attacks . | . . . . . . Damage Inflicted 3124 | . 1210 227 . 281 1406 Guns 905 | . 611 91 . . 203 Cannons 2009 | . 588 51 . 281 1089 Explosions 127 | . . 85 . . 42 Melee . | . . . . . . Ramming 11 | . 11 . . . . Kinetic 2193 | . 772 51 . 281 1089 Thermal 527 | . 370 85 . . 72 Explosive 42 | . . . . . 42 Electromagnetic 351 | . 57 91 . . 203 Impact . | . . . . . . Slashing . | . . . . . . Piercing . | . . . . . . Highest Corruption . | . . . . . . Average Corruption . | . . . . . . Corruption Purged . | . . . . . . Corruption Blocked . | . . . . . . Overload Shots . | . . . . . . Overflow Damage 5 | . 1 . . . 4 Projectiles 5 | . 1 . . . 4 Explosions . | . . . . . . Melee . | . . . . . . Knockbacks 16 | . 5 . . . 11 Impact . | . . . . . . Kinetic 16 | . 5 . . . 11 Secondary . | . . . . . . Self-Inflicted Damage 55 | . . 16 . . 39 Shots 2 | . . 1 . . 1 Rammed 1 | . 1 . . . . Targets Rammed 1 | . 1 . . . . Kicked . | . . . . . . Crushed . | . . . . . . Highest Temperature 414 | . 170 60 . 81 414 Average Temperature 74 | . 46 18 . 37 135 Received Heat Transfer 1113 | . 438 18 . 36 621 Effects 3 | . . . . . 3 Shutdowns 2 | . . . . . 2 Energy Bleed 1 | . . . . . 1 Siege Activations . | . . . . . . Robots Corrupted 1 | . . . . . 1 Combat Hostiles 1 | . . . . . 1 Parts Fried 2 | . 1 1 . . . Impact Corruptions . | . . . . . . Robots Melted . | . . . . . . Combat Hostiles . | . . . . . . Parts Melted . | . . . . . . Heat Transferred 1086 | . 886 50 . . 150 Parts Sabotaged . | . . . . . . Parts Stolen . | . . . . . . Parts Stripped . | . . . . . . Power Chain Reactions 2 | . . 2 . . . Alert | -11 -10 -10 -10 -9 -8 ------- Run | Yrd Mat Min Exi Min Mat Peak Influence 514 | . 514 123 . 70 79 Initial 44 | . . 44 . . 9 Average 55 | . 273 31 . 9 19 Maximum Alert Level 2 | . 2 . . . . Low Security (%) 90 | . 37 100 . 100 100 Level 1 7 | . 49 . . . . Level 2 1 | . 12 . . . . Level 3 . | . . . . . . Level 4 . | . . . . . . Level 5 . | . . . . . . High Security . | . . . . . . Max Security . | . . . . . . Squads Dispatched 9 | . 6 . . . 3 Investigation 2 | . 2 . . . . Extermination . | . . . . . . Reinforcement 7 | . 4 . . . 3 Assault . | . . . . . . Garrison . | . . . . . . Intercept . | . . . . . . Searches Triggered . | . . . . . . Construction Impeded . | . . . . . . Haulers Reinforced . | . . . . . . Active Scanning Responses . | . . . . . . Cargo Convoy Interrupts . | . . . . . . Stealth | -11 -10 -10 -10 -9 -8 --------- Run | Yrd Mat Min Exi Min Mat Distress Signals 4 | . 2 . . 1 1 Communications Jammed . | . . . . . . Distress Signals . | . . . . . . Times Spotted 56 | . 30 5 . 8 13 Peak Tracking Total 4 | . 4 3 . 3 3 Tactical Retreats 3 | . 2 . . . 1 Traps | -11 -10 -10 -10 -9 -8 ------- Run | Yrd Mat Min Exi Min Mat Traps Triggered 1 | . . . . . 1 Indirectly . | . . . . . . Trap Hack Attempts 20 | . . . . . 20 Triggered . | . . . . . . Disarmed . | . . . . . . Reprogrammed 6 | . . . . . 6 Reused . | . . . . . . Traps Extracted 9 | . . 4 . . 5 Installed 8 | . . 4 . 4 . Triggered . | . . . . . . Most Traps Carried 5 | . . 4 4 4 5 Machines | -11 -10 -10 -10 -9 -8 ---------- Run | Yrd Mat Min Exi Min Mat Machines Disabled 5 | . 3 1 . . 1 Max in Single Turn 1 | . 1 1 . . 1 Machines Repaired . | . . . . . . Machines Dismantled . | . . . . . . Machines Sabotaged . | . . . . . . Overloaded Fab Kills . | . . . . . . Hacking | -11 -10 -10 -10 -9 -8 --------- Run | Yrd Mat Min Exi Min Mat Machines Accessed 11 | . 5 1 2 1 2 Terminals 5 | . 2 . . 1 2 Fabricators . | . . . . . . Repair Stations 1 | . 1 . . . . Recycling Units 2 | . 2 . . . . Scanalyzers . | . . . . . . Garrison Access . | . . . . . . Total Hacks 32 | . 18 1 5 2 6 Successful 19 | . 10 1 5 1 2 Failed 13 | . 8 . . 1 4 Catastrophic . | . . . . . . Database Lockouts . | . . . . . . Manual 17 | . 8 . 1 2 6 Terminals 13 | . 5 . . 2 6 Fabricators . | . . . . . . Repair Stations 7 | . 7 . . . . Recycling Units 6 | . 6 . . . . Scanalyzers . | . . . . . . Garrison Access . | . . . . . . Terminal Hacks 7 | . . 1 5 1 . Record 4 | . . . 4 . . Robot Analysis 1 | . . . . 1 . Open Door 1 | . . 1 . . . Derelict Proto ID Bank 1 | . . . 1 . . Fabricator Hacks . | . . . . . . Repair Station Hacks 4 | . 4 . . . . Scan Component 2 | . 2 . . . . Repair 2 | . 2 . . . . Recycling Unit Hacks 1 | . 1 . . . . Retrieve Components 1 | . 1 . . . . Scanalyzer . | . . . . . . Garrison Access Hacks . | . . . . . . Unauthorized Hacks 7 | . 5 . . . 2 Terminals 5 | . 3 . . . 2 Assimilate 2 | . 1 . . . 1 Botnet 3 | . 2 . . . 1 Fabricators . | . . . . . . Repair Stations . | . . . . . . Recycling Units 2 | . 2 . . . . Tunnel 2 | . 2 . . . . Scanalyzers . | . . . . . . Garrison Access . | . . . . . . Data Cores Recovered . | . . . . . . Used . | . . . . . . Hacking Detections 8 | . 5 . . 1 2 Full Trace Events 1 | . 1 . . . . Feedback Events . | . . . . . . Feedback Blocked . | . . . . . . Robot Schematics Acquired . | . . . . . . Robots Built . | . . . . . . Authchips . | . . . . . . Time . | . . . . . . Total Robot Build Rating . | . . . . . . Part Schematics Acquired . | . . . . . . Parts Built . | . . . . . . Authchips . | . . . . . . Time . | . . . . . . Total Part Build Rating . | . . . . . . Parts Repaired 2 | . 2 . . . . Time 106 | . 106 . . . . Parts Recycled . | . . . . . . Recycled Matter . | . . . . . . Retrieved Matter . | . . . . . . Retrieved Components 2 | . 2 . . . . Parts Scanalyzed . | . . . . . . Part Schematics Acquired . | . . . . . . Parts Damaged . | . . . . . . Bothacking | -11 -10 -10 -10 -9 -8 ------------ Run | Yrd Mat Min Exi Min Mat Used RIF Installer . | . . . . . . Robots Hacked . | . . . . . . Non-combat . | . . . . . . Combat . | . . . . . . Robot Hacks Applied . | . . . . . . Relay Couplers Released . | . . . . . . Fabnet Peak Effective % . | . . . . . . Robots Rewired . | . . . . . . Allies Hacked . | . . . . . . Hacks Repelled . | . . . . . . Allies | -11 -10 -10 -10 -9 -8 -------- Run | Yrd Mat Min Exi Min Mat Total Allies 5 | . . 2 . 3 . Largest Group 3 | . . 2 2 3 . Highest-Rated Group 40 | . . 39 39 40 . Highest-Rated Ally 31 | . . 31 31 16 . Total Orders . | . . . . . . Ally Attacks 26 | . . . . 26 . Total Damage 210 | . . . . 210 . Kills 3 | . . . . 3 . Allies Corrupted . | . . . . . . Allies Melted . | . . . . . . Intel | -11 -10 -10 -10 -9 -8 ------- Run | Yrd Mat Min Exi Min Mat Robot Analysis Total 1 | . . . . 1 . Derelict Logs Recovered 2 | . . 1 . 1 . Drone Launches . | . . . . . . Drone Recoveries . | . . . . . . Exploration | -11 -10 -10 -10 -9 -8 ------------- Run | Yrd Mat Min Exi Min Mat Turns Passed 12772 | . 1623 1883 1771 3877 3618 Spaces Moved 2898 | 1 616 751 444 647 439 Core . | . . . . . . Treads 2725 | . 488 751 444 647 395 Legs 129 | 1 128 . . . . Wheels . | . . . . . . Hover 44 | . . . . . 44 Flight . | . . . . . . Fastest Speed 120 | 120 120 240 160 560 560 Average Speed 403 | 120 202 240 390 560 748 Slowest Speed 960 | 120 240 240 560 560 960 Overloaded Moves . | . . . . . . Propulsion Burnouts . | . . . . . . Robots Hopped . | . . . . . . Cave-ins Triggered . | . . . . . . Exploration Rate (%) 64 | 2 84 100 70 97 34 Regions Visited 5 Branch Regions 3 Pre-discovered Areas 3 | . 2 . 1 . . Known Exits Taken 1 | . . 1 . . . Unknown Exits Taken 4 | 1 1 . 1 1 . Scrap Searched 6 | . . 3 . 3 . Spaces Dug 2 | . . . . . 2 Terrain Destroyed 28 | . . 9 . . 19 Melee . | . . . . . . Projectile 10 | . . . . . 10 AOE 18 | . . 9 . . 9 Terrain Rammed . | . . . . . . Walls Destroyed . | . . . . . . Machines Disabled . | . . . . . . Actions | -11 -10 -10 -10 -9 -8 --------- Run | Yrd Mat Min Exi Min Mat Total 3679 | . 845 818 492 881 643 Wait 409 | . 106 36 14 204 49 Move 2893 | . 615 750 443 646 439 Hop . | . . . . . . Pick Up 67 | . 22 6 21 9 9 Fast Attach 15 | . 7 . 1 . 7 Attach 29 | . 2 3 . . 24 Detach 6 | . . . . . 6 Swap 8 | . 2 2 . . 4 Drop 41 | . 10 8 13 5 5 Fire 182 | . 80 9 . 13 80 Melee . | . . . . . . Ram . | . . . . . . Kick . | . . . . . . Crush 1 | . 1 . . . . Escape Stasis . | . . . . . . Rewire . | . . . . . . Trap 28 | . . 4 . 4 20 Miscellaneous . | . . . . . . Route ------- -11/Scrapyard -10/Materials (discovered 3 exits: [*Mat x2] / *Min) -10/Mines (discovered 4 exits: [*Mat x2] / *Exi / [*Sub]) -10/Exiles -9/Mines (discovered 2 exits: *Mat x2) -8/Materials (discovered 1 exit: [*Fac]) History --------- Turn | Location | Event 1 | -11/Scrapyard | Discovered new exit (range 0) 1 | -11/Scrapyard | Entered Materials 222 | -10/Materials | Discovered new exit (range 16) 287 | -10/Materials | Core integrity fell below 50% 311 | -10/Materials | Build established: Mutant 315 | -10/Materials | Lost 3 parts (2n1u) 367 | -10/Materials | Destroyed 7 combat bots 416 | -10/Materials | Discovered new exit (range 15) 680 | -10/Materials | Discovered new exit (range 11) 1351 | -10/Materials | Repaired Corrupted Hacking Suite 1554 | -10/Materials | Repaired Corrupted Hacking Suite 1624 | -10/Materials | Entered Mines 1630 | -10/Mines | Met a Derelict bent on vengeance 2032 | -10/Mines | Discovered new exit (range 12) 2106 | -10/Mines | Core integrity fell below 20% 2246 | -10/Mines | Identified exit to Exiles 2684 | -10/Mines | Found a hidden stash of uninstalled traps 2928 | -10/Mines | Found the Drone Emporium 2947 | -10/Mines | Found Prototype Device 3203 | -10/Mines | Discovered new exit (range 8) 3287 | -10/Mines | Discovered new exit (range 6) 3471 | -10/Mines | Deemed a non-threat by the Exiles lab entrance 3507 | -10/Mines | Entered Exiles 3507 | -10/Exiles | Accompanied by 2 allies 3537 | -10/Exiles | Led the pair of lost Derelicts to a safe place 3596 | -10/Exiles | Met 8R-AWN 3632 | -10/Exiles | Met EX-HEX 3742 | -10/Exiles | Met EX-DEC 3879 | -10/Exiles | Build established: Trapper-Mutant 4347 | -10/Exiles | Build established: Hauler-Mutant 4457 | -10/Exiles | Met EX-BIN 4530 | -10/Exiles | Aligned with FarCom system 4535 | -10/Exiles | Given EX-Vault access code 4664 | -10/Exiles | Opened EX-Vault 4703 | -10/Exiles | Found YOLO Cannon 4816 | -10/Exiles | Warned to stay clear of 0b10 Research branches 5024 | -10/Exiles | Learned location of Zion (-6) 5192 | -10/Exiles | Discovered new exit (range 12) 5278 | -10/Exiles | Left Exiles lab with YOLO Cannon 5278 | -10/Exiles | Entered Mines 5330 | -9/Mines | YI-UF0 nonchalantly dropped a Grenade Launcher on the ground 5694 | -9/Mines | Assisted by bots powering up and referring to "LRC-V3" 5891 | -9/Mines | Assembled infested the area 5896 | -9/Mines | Assisted by a Guerilla fighting off Assembled 6862 | -9/Mines | Lost 3 allies 7054 | -9/Mines | Discovered new exit (range 3) 7608 | -9/Mines | Joined a pair of Derelicts in attacking an 0b10 outpost 8210 | -9/Mines | Discovered new exit (range 11) 8326 | -9/Mines | Learned Materials stockpile data 9155 | -9/Mines | Entered Materials 9155 | -8/Materials | Evolved 4 slots: Utility x4 9157 | -8/Materials | Identified Decoy Drone Bay 12068 | -8/Materials | Discovered new exit (range 10) 12094 | -8/Materials | Lost 3 parts (1n1u1w) 12262 | -8/Materials | Core integrity fell below 50% 12331 | -8/Materials | Lost 11 parts (1p1n5u4w) 12337 | -8/Materials | Core integrity fell below 20% 12773 | -8/Materials | Destroyed by Y-45 Defender with Heavy Assault Rifle Last Messages --------------- 12471_ Acquired 58 matter. 12473_ K-01 Serf collects debris. 12510_ K-01 Serf cleans the Electrolysis Chamber. 12720_ Connecting with Terminal... >>Trojan(Botnet) Trojan loaded successfully. Testing... Terminal linked with 0 systems. Awaiting botnet instructions. >>Trojan(Assimilate) Trojan loaded successfully. Testing... System interface override in place. 12739_ Acquired Lgt. Treads. 12754_ Fission Core destroyed. 12765_ Grenade Launcher destroyed. 12768_ Critical hit (Burn: +37). 12768_ Imp. Hover Unit destroyed. 12768_ Dropped Rigged Lgt. Fission Core. 12771_ Rigged Lgt. Fission Core explodes. Map ----- +----------------------------------------------------+ | | | | | | | | | | | | | | | | | | | | | | | ????????????????????????????????? | | ????????????????????########????? | | ??????????????####### #????? | | #######???????# ! # #????? | | = ! ######### # #????? | | + #????? | | !! ###### # #????? | | ########+###??# # #????? | | # #??##############????? | | + """ #???????# = #?????? | | # """ #???????# "S ####??? | | # """ ]#???????# """ # #??? | | # "" #???????# "" ; #??? | | # G" #???????# Y #??? | | # "" #???????#* !@; #??? | | # #???????#####;;; ##?? | | ########+##??? ########## #?? | | ##??????????? #?? | | ????????????? T #?? | | ????????????????#######+## #?? | | ??????????????????# ## ##?? | | ??????????######### ## #??? | | ??????# + """ ## #??? | | ??????# ####### """ + #??? | | ??#####+###+#?????# """ ## #??? | | ??# #?????# ## #??? | | ??# #?????##+###### #??? | | ??# / #??????# #????# #??? | | ??# ] ! #??????# #????# #??? | | ??# ###????# #????# ###? | | ### != = # ##?### ##??? #? | | ## != ####### ### #? | | ## %+ % #? | | ################## %### #? | | ## *#### #####??? #? | | ## """ """ ###"#"###?????? #? | | ## """ """ # [ =#???????#+###?? | | ## """ """ # #?????????????? | | ## # #?????????????? | +----------------------------------------------------+ Best States ------------- Heat Dissipation 53 Energy Generation 18 Energy Capacity 310 Matter Stores 300 Matter Capacity 300 Sight Range 18 Terrain Scan Density 10 ECM Strength 1 Armor Coverage 300 Utility Shielding 33 Evasion (%) 55 Armor Integrity Analysis 30 Recoil Reduction 2 Offensive Hacking 20 Trap Extractor Capacity 4 Item Schematics ----------------- None Robot Schematics ------------------ None Fabricated ------------ Nothing Alien Tech Used ----------------- None Achievements -------------- None Challenges ------------ None Game ------ Seed RingCompositeGuard Manual? 0 Play Time 00:31:24 Cumulative 111.0 hours Start 2024.11.18 @ 16:35:45 End 2024.11.18 @ 17:05:20 Sessions 1 Manual Loads 0 Difficulty Rogue Special Mode None Game No. 203 Rogue 203 Adventurer 0 Explorer 0 Win Type - Total 0 Types 0/0/0/0/0/0/0/0/0 Lore% 42 Gallery% 40 Achievement% 35 Wizard Run 0 Options --------- Layout 0 ASCII 0 Keyboard 0 Movement Mouse Keybinds 0 Fullscreen 1 Font 24/Cog Map View 91x25 Zoom Use 96% Tactical HUD 1 Map Filters NONE Filters NONE Steam 1 RUN: a0d9f917-bbc2-43e9-9d68-02425866c211